Cogmind - Beta 15 @@@ ROGUE MODE // 2025.06.16 @ 15:48:05 Player: KN-OKO Result: Destroyed by G-73 Enforcer with Heavy Laser Performance ------------- Evolutions (8) 4000 Regions Visited (19) 3800 Robots Destroyed (118) 590 Value Destroyed (4286) 4286 Prototype IDs (50) 1000 Alien Tech Used (2) 400 Bonus (1988) 1988 TOTAL SCORE: 16064 Bonus ------- High Alert Combat Kills 40 Follower Combat Kills 148 Met Zhirov 300 Met Warlord at Base 500 MAIN.C Attacked Warlord 500 Scanned by Researcher 500 Cogmind --------- Core Integrity 0/1450 Matter 227/300 Energy 100/100 System Corruption 2% Temperature Cool (18) Movement Core (50) Location -2/Quarantine Parts ------- > --- POWER (2) -------- (None) > --- PROPULSION (8) --- (None) > --- UTILITY (11) ----- Experimental Optical Array Advanced Signal Interpreter Advanced Melee Analysis Suite > --- WEAPON (2) ------- (None) > --- INVENTORY (5) ---- Improved Diametric Drive Dirty Datajack (19) Sigix Broadsword Peak State ------------ > --- POWER ------------ Heavy Antimatter Reactor Mini Fusion Reactor > --- PROPULSION ------- Improved Diametric Drive Improved Diametric Drive Improved Diametric Drive Improved Diametric Drive Cooled Impulse Thruster Cooled Impulse Thruster Impulse Thruster Array > --- UTILITY ---------- Advanced Heat Sink Experimental Optical Array Advanced Sensor Array Advanced Signal Interpreter 0b10 Decoder Chip [Skirmisher] Advanced Melee Analysis Suite AEGIS Remote Shield Hacking Suite Makeshift Hacking Suite Improved Hacking Suite Improved Hacking Suite > --- WEAPON ----------- Sigix Broadsword > --- INVENTORY -------- Improved Diametric Drive Transdimensional Reconstructor Vortex Rail Fusion Bomb Launcher Dirty Datajack [Rating: 178] Favorites ----------- Power Ion Engine Engine Ion Engine Power Core Micro Nuclear Core Reactor Heavy Antimatter Reactor Propulsion Light Treads Treads Light Treads Leg Aluminum Leg Flight Unit Improved Cesium-ion Thruster Utility Improved Hacking Suite Device Advanced Terrain Scanner Storage Large Storage Unit Processor Advanced Melee Analysis Suite Hackware Improved Hacking Suite Protection Light Armor Plating Weapon Light Cannon Energy Gun Medium Laser Energy Cannon Beam Cannon Ballistic Gun Assault Rifle Ballistic Cannon Light Cannon Launcher Heavy Missile Launcher Special Weapon Mining Laser Impact Weapon Makeshift Hammer Slashing Weapon Power Sword Piercing Weapon Kinetic Spear Special Melee Weapon Dirty Datajack Build | -11 -10 -10 -8 -7 -6 -5 -5 -5 -5 -4 -4 -4 -4 -4 -3 -3 -3 -2 -2 ------- Run | Yrd Mat Sub Mat Fac Fac Fac Upp Upp War Pro Fac Upp Upp Zhi Pro Res Tes Res Qua Slots Evolved 16 | . . . 4 2 2 2 . . . . 2 . . . . 2 . 2 . Power 1 | . . . . . . 1 . . . . . . . . . . . . . Propulsion 6 | . . . 2 . 2 1 . . . . . . . . . . . 1 . Utility 9 | . . . 2 2 . . . . . . 2 . . . . 2 . 1 . Weapon . | . . . . . . . . . . . . . . . . . . . . Parts Attached 117 | 6 10 10 16 12 9 2 1 1 8 . 6 . 1 7 6 5 10 5 2 Power 14 | 1 2 . 3 1 . . . . 1 . 2 . . 1 . 1 2 . . Engine 6 | 1 2 . 2 1 . . . . . . . . . . . . . . . Core 1 | . . . 1 . . . . . . . . . . . . . . . . Reactor 7 | . . . . . . . . . 1 . 2 . . 1 . 1 2 . . Propulsion 28 | 2 1 3 3 1 2 . . . 1 . 1 . . 3 4 1 3 3 . Treads 4 | 2 1 1 . . . . . . . . . . . . . . . . . Leg 5 | . . 2 3 . . . . . . . . . . . . . . . . Wheel . | . . . . . . . . . . . . . . . . . . . . Hover . | . . . . . . . . . . . . . . . . . . . . Flight 19 | . . . . 1 2 . . . 1 . 1 . . 3 4 1 3 3 . Utility 46 | 1 2 2 7 9 4 . 1 . 4 . 3 . . 3 1 3 3 2 1 Device 17 | . 1 . 1 2 2 . . . 3 . 1 . . 1 1 . 3 1 1 Storage 3 | 1 1 . . 1 . . . . . . . . . . . . . . . Processor 13 | . . . 1 5 1 . 1 . 1 . 1 . . . . 3 . . . Hackware 7 | . . . 2 1 1 . . . . . 1 . . 1 . . . 1 . Protection 6 | . . 2 3 . . . . . . . . . . 1 . . . . . Artifact . | . . . . . . . . . . . . . . . . . . . . Weapon 29 | 2 5 5 3 1 3 2 . 1 2 . . . 1 . 1 . 2 . 1 Energy Gun 4 | 1 1 1 . . . . . . 1 . . . . . . . . . . Energy Cannon 2 | . 1 . 1 . . . . . . . . . . . . . . . . Ballistic Gun 3 | 1 1 . 1 . . . . . . . . . . . . . . . . Ballistic Cannon 4 | . 1 3 . . . . . . . . . . . . . . . . . Launcher 3 | . . . . . 1 1 . . . . . . . . . . 1 . . Special Weapon 2 | . 1 . . . . . . . . . . . . . . . 1 . . Impact Weapon 4 | . . 1 1 1 1 . . . . . . . . . . . . . . Slashing Weapon 4 | . . . . . 1 . . . 1 . . . . . 1 . . . 1 Piercing Weapon 2 | . . . . . . 1 . 1 . . . . . . . . . . . Special Melee Weapon 1 | . . . . . . . . . . . . . 1 . . . . . . Unidentified Prototypes 20 | . . . 2 1 1 1 . . 7 . . . . 5 . . 2 . 1 Corrupted Parts 1 | . . . 1 . . . . . . . . . . . . . . . . System Corruption 2 | . . . 2 . . . . . . . . . . . . . . . . Parts Lost 37 | . . 6 7 . . . . . . . . . . . 2 . 3 . 19 Power 4 | . . 1 1 . . . . . . . . . . . . . . . 2 Propulsion 12 | . . 2 1 . . . . . . . . . . . 1 . 1 . 7 Utility 15 | . . 1 2 . . . . . . . . . . . 1 . 2 . 9 Weapon 6 | . . 2 3 . . . . . . . . . . . . . . . 1 Highest Loss Streak 18 | . . 4 5 . . . . . . . . . . . 2 . 3 . 18 To Critical Strikes 3 | . . 1 . . . . . . . . . . . . 1 . . . 1 Average Backups 8 | 3 8 10 10 6 9 9 10 10 9 10 8 9 9 8 6 4 4 5 4 Power . | . . . . . 1 . . . . . . . . . . . . . . Propulsion 3 | 2 4 5 2 . . . . . . 1 2 3 3 3 1 . . . 1 Utility 1 | . . 1 2 2 2 3 3 3 4 3 1 1 1 1 . . . . . Weapon 3 | . 2 2 4 2 4 5 6 6 4 4 4 4 4 3 2 1 2 2 1 Tool/Special . | . . . . . . . . . . . . . . . . . . . . Unused Backups 24 | . 4 2 1 5 3 1 . 2 . . 1 . . 1 1 1 . . 2 Power 1 | . . . 1 . . . . . . . . . . . . . . . . Propulsion 10 | . 3 2 . 1 . . . . . . 1 . . . 1 1 . . 1 Utility 4 | . . . . 2 2 . . . . . . . . . . . . . . Weapon 8 | . 1 . . 2 1 1 . 2 . . . . . 1 . . . . . Tool/Special 1 | . . . . . . . . . . . . . . . . . . . 1 Average Slot Usage (%) 86 | . 98 84 84 74 82 75 75 79 82 85 85 81 81 80 86 94 88 93 83 Engine 8 | . 14 13 4 5 5 10 10 10 10 10 6 4 4 3 4 4 1 . . Reactor 1 | . . . . . . . . . . . 2 4 4 4 4 4 7 8 7 Treads 10 | . 28 18 . . . . . . . . . . . . . . . . . Leg 3 | . . 4 24 1 . . . . . . . . . . . . . . . Flight 8 | . . . . 5 15 15 15 15 17 20 17 13 13 13 25 28 23 29 27 Device 6 | . 12 . 1 11 11 10 9 5 5 5 9 9 9 8 9 9 8 11 10 Storage 8 | . 14 13 7 4 5 5 5 5 5 5 4 4 4 4 1 . . . . Processor 8 | . . . 6 17 16 15 15 20 20 20 20 18 18 18 13 18 19 17 16 Hackware 8 | . . . 15 13 16 15 15 15 15 15 15 18 18 18 19 19 18 16 15 Protection 2 | . . 5 6 . . . . . . . . . . . . . . . . Energy Gun 1 | . 5 . . . . . . . . . . . . . . . . . . Energy Cannon 2 | . 10 . 1 . . . . . . . . . . . . . . . . Ballistic Cannon 7 | . 9 17 5 . . . . . . . . . . . . . . . . Special Weapon 1 | . . 3 . . . . . . . . . . . . . . . . . Impact Weapon 3 | . . 4 8 11 8 . . . . . . . . . . . . . . Slashing Weapon 1 | . . . . . 2 4 . . 4 5 3 4 4 4 5 8 8 8 3 Peak Build Rating 178 | 6 10 33 50 79 99 105 100 105 120 115 132 128 128 134 127 129 140 159 178 Average Rating 59 | 4 8 12 45 70 96 98 99 104 109 115 126 128 127 129 115 124 133 156 160 On Entrance 92 | . 6 10 33 49 79 99 100 100 105 115 115 128 128 128 127 115 129 122 159 Naked Turns . | . . . . . . . . . . . . . . . . . . . . Heaviest Build 53 | 12 32 49 44 43 30 35 33 35 35 35 41 41 41 43 45 45 45 49 53 Greatest Support 81 | 40 40 55 75 81 42 36 36 36 43 43 45 45 45 45 45 45 49 58 58 Greatest Overweight (x) 1 | . . 1 . 1 . . . . . . . . . 1 . . . . . Average Overweight (x) . | . . . . . . . . . . . . . . . . . . . . Largest Inventory Capacity 15 | 8 15 15 15 15 10 10 10 10 10 10 10 10 10 10 10 5 5 5 5 Average Capacity 11 | 6 10 15 15 8 10 10 10 10 10 10 10 10 10 10 6 5 5 5 5 Most Carried 15 | 6 12 15 15 15 10 10 10 10 10 10 10 10 10 10 10 5 5 5 5 Average Carried 9 | 3 8 12 13 6 9 9 10 9 9 9 9 10 10 9 6 4 4 4 4 Final Capacity 15 | 8 15 15 15 10 10 10 10 10 10 10 10 10 10 10 5 5 5 5 5 Final Carried 15 | 6 12 15 15 10 10 10 10 9 10 10 10 10 10 10 5 5 5 5 4 Class Distribution -------------------- 48% | Mutant 18% | Hacker-Sprinter 14% | Hacker-Scout 9% | Hacker-Mutant 5% | Hacker-Gladiator 3% | Hacker-Ninja Dominant Class ---------------- Mutant | -10/Materials Mutant | -10/Subcaves Hacker-Mutant | -8/Materials Hacker-Gladiator | -7/Factory Hacker-Sprinter | -6/Factory Hacker-Sprinter | -5/Factory Hacker-Sprinter | -5/Upper Caves Hacker-Sprinter | -5/Upper Caves Hacker-Sprinter | -5/Warlord Hacker-Sprinter | -4/Proximity Caves Hacker-Scout | -4/Factory Hacker-Scout | -4/Upper Caves Hacker-Scout | -4/Upper Caves Hacker-Scout | -4/Zhirov Hacker-Sprinter | -3/Proximity Caves Hacker-Sprinter | -3/Research Hacker-Scout | -3/Testing Hacker-Ninja | -2/Research Hacker-Scout | -2/Quarantine Resources | -11 -10 -10 -8 -7 -6 -5 -5 -5 -5 -4 -4 -4 -4 -4 -3 -3 -3 -2 -2 ----------- Run | Yrd Mat Sub Mat Fac Fac Fac Upp Upp War Pro Fac Upp Upp Zhi Pro Res Tes Res Qua Matter Collected 2485 | 260 339 290 180 131 139 20 25 68 . 148 5 113 20 105 151 180 184 90 37 Remotely . | . . . . . . . . . . . . . . . . . . . . Salvage Created 4063 | . 534 308 977 35 519 162 33 53 . 52 74 . 166 105 198 268 357 . 222 Parts 195 | . 43 13 14 1 20 7 . 7 . 3 6 . 7 3 16 21 25 . 9 Haulers Intercepted 7 | . 2 . 3 1 . . . . . . . . . . . 1 . . . Recyclers Shooed . | . . . . . . . . . . . . . . . . . . . . Parts Field Recycled . | . . . . . . . . . . . . . . . . . . . . Retrieved Matter . | . . . . . . . . . . . . . . . . . . . . Parts Self-Destructed 27 | . . 10 . . . . . 2 . 3 . . . 3 9 . . . . Prevented 6 | . . . . . . . . 2 . . . . 4 . . . . . . Kills | -11 -10 -10 -8 -7 -6 -5 -5 -5 -5 -4 -4 -4 -4 -4 -3 -3 -3 -2 -2 ------- Run | Yrd Mat Sub Mat Fac Fac Fac Upp Upp War Pro Fac Upp Upp Zhi Pro Res Tes Res Qua Combat Hostiles Destroyed 88 | . 16 8 16 . 11 2 . 4 . 1 5 . 1 . 10 5 7 . 2 Melee 22 | . . 1 6 . 2 2 . . . 1 . . 1 . 2 . 5 . 2 Guns 10 | . 10 . . . . . . . . . . . . . . . . . . Cannons 8 | . 6 2 . . . . . . . . . . . . . . . . . AOE 29 | . . . . . 5 . . 4 . . 5 . . . 8 5 2 . . Classes Destroyed 16 | . 5 1 5 . 1 . . . . . . . 1 . 1 1 . . 1 Worker 3 | . . . 1 . . 1 . . . . . . . . . . . . 1 Builder 1 | . 1 . . . . . . . . . . . . . . . . . . Tunneler 1 | . . . 1 . . . . . . . . . . . . . . . . Hauler 7 | . 2 . 3 1 . . . . . . . . . . . 1 . . . Recycler 1 | . . . 1 . . . . . . . . . . . . . . . . Operator 1 | . . . . . . . . . . . . . . . . 1 . . . Drone 1 | . . . . . . . . . . . . . . . 1 . . . . Watcher 11 | . 2 . 1 . 1 1 . . . . . . . . . 2 3 . 1 Swarmer 45 | . 9 . . . 8 . . 4 . . 5 . . . 9 5 5 . . Grunt 22 | . 7 . 11 . 2 . . . . . . . 1 . . . 1 . . Duelist 2 | . . . 2 . . . . . . . . . . . . . . . . Researcher 4 | . . . . . . . . . . . . . . . . . . . 4 Sentry 3 | . . . 3 . . . . . . . . . . . . . . . . Programmer 7 | . . . . . 1 2 . . . 1 . . . . . . 1 . 2 Behemoth 1 | . . . . . . . . . . . . . 1 . . . . . . Subdweller 8 | . . 8 . . . . . . . . . . . . . . . . . Decomposer 2 | . . . . . . . 2 . . . . . . . . . . . . Best Kill Streak 9 | . 5 2 9 1 6 2 . 4 . 1 5 . 1 . 5 5 5 . 5 Combat Bots Only 7 | . 5 2 7 . 6 1 . 4 . 1 5 . 1 . 5 5 5 . 1 Max Kills in Single Turn 4 | . 2 1 1 1 2 1 1 3 . 1 4 . 1 . 3 4 2 . 2 Gunslinging . | . . . . . . . . . . . . . . . . . . . . Exploded 4 | . . . . . 2 . . 3 . . 4 . . . 3 4 2 . . Melee 1 | . . 1 1 . 1 1 . . . 1 . . 1 . 1 . 1 . 1 Uniques/NPCs Destroyed . | . . . . . . . . . . . . . . . . . . . . Combat | -11 -10 -10 -8 -7 -6 -5 -5 -5 -5 -4 -4 -4 -4 -4 -3 -3 -3 -2 -2 -------- Run | Yrd Mat Sub Mat Fac Fac Fac Upp Upp War Pro Fac Upp Upp Zhi Pro Res Tes Res Qua Hostile Shots Fired 685 | . 57 43 113 24 39 26 17 8 19 7 24 2 4 . 30 14 24 18 216 Missed 231 | . 9 11 36 17 14 5 8 3 13 6 12 . 3 . 9 7 10 9 59 Hits 454 | . 48 32 77 7 25 21 9 5 6 1 12 2 1 . 21 7 14 9 157 Melee 1 | . . . 1 . . . . . . . . . . . . . . . . Projectile 453 | . 48 32 76 7 25 21 9 5 6 1 12 2 1 . 21 7 14 9 157 AOE 4 | . . 4 . . . . . . . . . . . . . . . . . Critical Strikes 24 | . . 2 2 . 1 3 . . . 1 1 . . . 1 1 2 3 7 Damage Taken 8096 | . 456 897 1332 55 436 438 179 73 66 23 206 44 21 . 440 81 285 124 2940 Core 2201 | . 129 105 176 6 29 62 43 12 . 23 . 19 . . 64 11 61 23 1438 Absorbed by Shields 397 | . . . . . . . . . . . . . . . 112 83 . 121 81 Regen/Repaired (Parts) 156 | . 35 . . . . . . . . . . . . . . 71 . . 50 Core Remaining (%) 80 | 100 . 6 68 99 96 . . . . 86 . . . . 92 . 94 . . Volleys Fired 190 | . 90 64 2 . 4 . . 3 2 . 2 . . . 7 2 2 . 12 Largest 2 | . 2 2 1 . 1 . . 1 1 . 1 . . . 1 1 1 . 1 Hottest 110 | . 110 100 68 . 43 . . 39 45 . 39 . . . 39 39 52 . 52 Shots Fired 253 | . 137 80 2 . 4 . . 3 2 . 2 . . . 7 2 2 . 12 Gun 76 | . 64 5 . . . . . . 2 . . . . . . . . . 5 Cannon 104 | . 65 37 2 . . . . . . . . . . . . . . . . Launcher 26 | . . . . . 4 . . 3 . . 2 . . . 7 2 1 . 7 Special 47 | . 8 38 . . . . . . . . . . . . . . 1 . . Kinetic 103 | . 66 37 . . . . . . . . . . . . . . . . . Thermal 116 | . 71 43 2 . . . . . . . . . . . . . . . . Explosive 22 | . . . . . . . . 3 . . 2 . . . 7 2 1 . 7 Electromagnetic 4 | . . . . . 4 . . . . . . . . . . . . . . Entropic 7 | . . . . . . . . . 2 . . . . . . . . . 5 Robot Hit Streak 20 | . 11 20 1 . . . . 2 . . 4 . . . 6 1 2 . 5 Robot Miss Streak 4 | . 4 1 1 . 2 . . . . . . . . . . 1 . . 2 Penetration Max . | . . . . . . . . . . . . . . . . . . . . Secondary Targets 1 | . 1 . . . . . . . . . . . . . . . . . . Max Gunslinging Chain 1 | . 1 . . . . . . . . . . . . . . . . . . Shots Hit Robots 242 | . 54 31 64 4 10 12 2 2 . 6 2 . 5 7 4 7 12 2 18 Core Hits 123 | . 24 7 9 1 9 3 2 5 . 1 5 . 3 1 13 10 10 . 20 Critical Kills 3 | . . . 3 . . . . . . . . . . . . . . . . Critical Parts Destroyed 14 | . . 4 8 . 1 . . . . . . . . . . . . . 1 Critical Strikes 25 | . 3 5 11 . 1 1 . . . . . . 1 . . 1 1 . 1 Burn 3 | . 3 . . . . . . . . . . . . . . . . . . Blast 1 | . . 1 . . . . . . . . . . . . . . . . . Smash 16 | . . 4 11 . 1 . . . . . . . . . . . . . . Sever 3 | . . . . . . 1 . . . . . . . . . 1 1 . . Impale 1 | . . . . . . . . . . . . . 1 . . . . . . Detonate 1 | . . . . . . . . . . . . . . . . . . . 1 Melee Attacks 327 | . . 24 84 26 22 24 4 4 1 8 9 . 5 7 8 19 45 17 20 Impact 145 | . . 24 84 26 11 . . . . . . . . . . . . . . Slashing 163 | . . . . . 11 21 . . 1 5 9 . 1 6 8 19 45 17 20 Piercing 19 | . . . . . . 3 4 4 . 3 . . 4 1 . . . . . Sneak Attacks 20 | . . . 5 2 1 1 2 . . . . . 3 . . 1 2 1 2 Combat Hostiles 2 | . . . . . . . . . . . . . . . . . 1 1 . Follow-up Attacks 9 | . . . . 2 2 . . . . 1 . . . 1 . 2 1 . . Damage Inflicted 13883 | . 792 982 2873 322 826 641 223 343 . 279 459 . 321 593 846 938 895 163 2387 Guns 728 | . 524 23 . . . . . . . . . . . . . . . . 181 Cannons 522 | . 221 281 20 . . . . . . . . . . . . . . . . Explosions 4079 | . . . . . 257 . . 343 . . 459 . . . 769 574 281 . 1396 Melee 8507 | . . 678 2853 322 569 641 223 . . 279 . . 321 593 77 364 614 163 810 Ramming 23 | . 23 . . . . . . . . . . . . . . . . . . Kinetic 495 | . 214 281 . . . . . . . . . . . . . . . . . Thermal 618 | . 555 23 20 . 20 . . . . . . . . . . . . . . Explosive 3758 | . . . . . . . . 343 . . 459 . . . 769 574 281 . 1332 Electromagnetic 301 | . . . . . 237 . . . . . . . . . . . . . 64 Impact 4165 | . . 678 2853 322 312 . . . . . . . . . . . . . . Slashing 3685 | . . . . . 257 641 . . . 192 . . 62 505 77 364 614 163 810 Piercing 657 | . . . . . . . 223 . . 87 . . 259 88 . . . . . Entropic 181 | . . . . . . . . . . . . . . . . . . . 181 Highest Corruption 5 | . . . 2 4 1 4 4 4 4 1 . . . . . . 5 . 2 Average Corruption 2 | . . . 2 2 1 3 4 4 4 1 . . . . . . 5 . 1 Corruption Purged . | . . . . . . . . . . . . . . . . . . . . Corruption Blocked . | . . . . . . . . . . . . . . . . . . . . Effects 30 | . . . 2 5 2 3 3 4 1 . . . . . . . 8 . 2 Message Errors 7 | . . . 1 1 . 1 1 1 . . . . . . . . 2 . . Matter Fused 11 | . . . 1 1 . . 2 2 . . . . . . . . 3 . 2 Heat Flow Errors 3 | . . . . 1 1 . . . . . . . . . . . 1 . . Energy Discharges 4 | . . . . . . 1 . . 1 . . . . . . . 2 . . Data Loss (minor) 4 | . . . . 1 1 1 . 1 . . . . . . . . . . . Alerts 1 | . . . . 1 . . . . . . . . . . . . . . . Overload Shots . | . . . . . . . . . . . . . . . . . . . . Overflow Damage 2187 | . 10 312 781 46 203 124 . 8 . 36 . . . 51 76 127 29 . 384 Projectiles 10 | . 10 . . . . . . . . . . . . . . . . . . Explosions 355 | . . . . . . . . 8 . . . . . . 76 87 7 . 177 Melee 1822 | . . 312 781 46 203 124 . . . 36 . . . 51 . 40 22 . 207 Knockbacks 19 | . 2 9 6 1 1 . . . . . . . . . . . . . . Impact 10 | . . 4 4 1 1 . . . . . . . . . . . . . . Kinetic 5 | . 2 3 . . . . . . . . . . . . . . . . . Secondary 4 | . . 2 2 . . . . . . . . . . . . . . . . Self-Inflicted Damage 288 | . . . . . 24 . . . . . . . . . 76 . . . 188 Shots 6 | . . . . . 1 . . . . . . . . . 2 . . . 3 Rammed 3 | . 3 . . . . . . . . . . . . . . . . . . Targets Rammed 5 | . 5 . . . . . . . . . . . . . . . . . . Kicked . | . . . . . . . . . . . . . . . . . . . . Crushed 2 | . 2 . . . . . . . . . . . . . . . . . . Highest Temperature 295 | . 213 . 24 93 295 2 11 . 10 12 8 2 5 . . . 138 261 . Average Temperature 48 | . 66 . 10 50 150 2 6 . 4 5 1 2 4 . . . 59 73 . Received Heat Transfer 1462 | . 114 111 576 18 72 9 45 . . . 18 9 12 . . 4 85 218 171 Effects 2 | . 2 . . . . . . . . . . . . . . . . . . Interference 2 | . 2 . . . . . . . . . . . . . . . . . . Siege Activations . | . . . . . . . . . . . . . . . . . . . . Martial Activations . | . . . . . . . . . . . . . . . . . . . . Shielding Activations . | . . . . . . . . . . . . . . . . . . . . Robots Disrupted . | . . . . . . . . . . . . . . . . . . . . Combat Hostiles . | . . . . . . . . . . . . . . . . . . . . Robots Corrupted 22 | . . 5 13 . 4 . . . . . . . . . . . . . . Combat Hostiles 19 | . . 5 10 . 4 . . . . . . . . . . . . . . Parts Fried 24 | . . 6 15 . 3 . . . . . . . . . . . . . . Impact Corruptions 39 | . . 7 25 2 5 . . . . . . . . . . . . . . Robots Melted . | . . . . . . . . . . . . . . . . . . . . Combat Hostiles . | . . . . . . . . . . . . . . . . . . . . Parts Melted 1 | . . . . . . 1 . . . . . . . . . . . . . Heat Transferred 1827 | . 1715 25 37 . 50 . . . . . . . . . . . . . . Parts Sabotaged . | . . . . . . . . . . . . . . . . . . . . Parts Stolen . | . . . . . . . . . . . . . . . . . . . . Parts Stripped . | . . . . . . . . . . . . . . . . . . . . Power Chain Reactions 2 | . . . . . 2 . . . . . . . . . . . . . . Alert | -11 -10 -10 -8 -7 -6 -5 -5 -5 -5 -4 -4 -4 -4 -4 -3 -3 -3 -2 -2 ------- Run | Yrd Mat Sub Mat Fac Fac Fac Upp Upp War Pro Fac Upp Upp Zhi Pro Res Tes Res Qua Maximum Alert Level 2 | . 1 . . . 2 1 . . . . 1 . . . . 2 2 . 1 Low Security (%) 76 | 100 99 . 100 100 52 . . . . . 92 . . . . . 3 100 86 Level 1 21 | . . . . . 41 100 . . . . 7 . . . . 73 91 . 13 Level 2 2 | . . . . . 5 . . . . . . . . . . 26 4 . . Level 3 . | . . . . . . . . . . . . . . . . . . . . Level 4 . | . . . . . . . . . . . . . . . . . . . . Level 5 . | . . . . . . . . . . . . . . . . . . . . High Security . | . . . . . . . . . . . . . . . . . . . . Max Security . | . . . . . . . . . . . . . . . . . . . . Peak Influence 451 | . 204 . 162 32 450 248 . . . . 243 . . . . 451 412 194 339 Initial 274 | . . . . 32 11 220 . . . . 6 . . . . 274 198 156 11 Average 107 | . 57 . 104 4 157 228 . . . . 61 . . . . 328 258 78 69 Influence Increases 4191 | . 428 . 463 104 598 133 45 80 . 30 333 . 35 5 265 479 527 189 477 Destroy 0b10 Robot/C 1780 | . 320 . 320 . 300 40 . 80 . 20 100 . 20 . 180 100 180 . 120 Destroy 0b10 Robot/NC 140 | . 25 . 35 5 10 10 . . . . . . . 5 5 20 15 . 10 Destroy Leader 296 | . 78 . 78 2 42 12 . . . 10 10 . . . 20 16 26 . 2 Allied During Kill 13 | . . . . . 13 . . . . . . . . . . . . . . Trap Triggered on 0b10 40 | . . . . . . . . . . . 40 . . . . . . . . Successful Hack 287 | . . . . 34 42 10 . . . . 30 . . . . 21 108 30 12 Disable Machine 240 | . . . . . 75 15 . . . . 15 . . . . . 60 . 75 Destroy Structure 495 | . 5 . . 18 11 16 . . . . 48 . . . . 52 78 39 228 Advance Influence 150 | . . . . . . . . . . . . . . . . 150 . . . Partial Spotted 180 | . . . . 15 15 15 . . . . 30 . . . . 15 45 15 30 Lose Combat Pursuer 570 | . . . 30 30 90 15 45 . . . 60 . 15 . 60 105 15 105 . Influence Decreases 4012 | . 428 . 391 153 171 350 137 118 103 20 270 73 35 5 80 311 601 447 319 Entered New Map 881 | . . . . 40 12 230 87 28 103 . 4 28 . . . 61 155 123 10 Time Decay 2099 | . 428 . 321 104 159 100 50 90 . 20 116 45 35 5 60 100 246 130 90 Lost Part 310 | . . . 70 . . . . . . . . . . . 20 . 30 . 190 Lost Ally 40 | . . . . . . 20 . . . . . . . . . . 20 . . Purge Threat 682 | . . . . 9 . . . . . . 150 . . . . 150 150 194 29 Squads Dispatched 16 | . 4 . 1 3 . . . . . . . . . . . 1 1 2 4 Investigation 3 | . 1 . 1 . . . . . . . . . . . . . . 1 . Extermination 3 | . . . . 2 . . . . . . . . . . . . 1 . . Reinforcement 10 | . 3 . . 1 . . . . . . . . . . . 1 . 1 4 Assault . | . . . . . . . . . . . . . . . . . . . . Garrison . | . . . . . . . . . . . . . . . . . . . . Intercept . | . . . . . . . . . . . . . . . . . . . . Searches Triggered . | . . . . . . . . . . . . . . . . . . . . Construction Impeded 1 | . . . . . . . . . . . . . . . . 1 . . . Haulers Reinforced . | . . . . . . . . . . . . . . . . . . . . Active Scanning Responses . | . . . . . . . . . . . . . . . . . . . . Cargo Convoy Interrupts . | . . . . . . . . . . . . . . . . . . . . Stealth | -11 -10 -10 -8 -7 -6 -5 -5 -5 -5 -4 -4 -4 -4 -4 -3 -3 -3 -2 -2 --------- Run | Yrd Mat Sub Mat Fac Fac Fac Upp Upp War Pro Fac Upp Upp Zhi Pro Res Tes Res Qua Distress Signals 7 | . 1 . 2 . . . . . . . 1 . . . . . . 3 . Communications Jammed . | . . . . . . . . . . . . . . . . . . . . Distress Signals . | . . . . . . . . . . . . . . . . . . . . Times Spotted 210 | . 27 9 23 8 20 6 4 4 15 1 18 1 3 . 9 15 13 11 23 Peak Tracking Total 15 | . 5 2 8 2 4 3 4 4 14 1 10 1 1 . 5 7 5 9 15 Tactical Retreats 22 | . . . 2 2 4 1 1 . . . 2 . 1 . 1 2 1 5 . Traps | -11 -10 -10 -8 -7 -6 -5 -5 -5 -5 -4 -4 -4 -4 -4 -3 -3 -3 -2 -2 ------- Run | Yrd Mat Sub Mat Fac Fac Fac Upp Upp War Pro Fac Upp Upp Zhi Pro Res Tes Res Qua Traps Triggered 9 | . 1 . 2 2 1 . . . . . . . . . . . 3 . . Indirectly 1 | . . . . . 1 . . . . . . . . . . . . . . Trap Hack Attempts . | . . . . . . . . . . . . . . . . . . . . Triggered . | . . . . . . . . . . . . . . . . . . . . Disarmed . | . . . . . . . . . . . . . . . . . . . . Reprogrammed 6 | . . . . . . . . . . . 6 . . . . . . . . Reused 4 | . . . . . . . . . . . 4 . . . . . . . . Traps Extracted . | . . . . . . . . . . . . . . . . . . . . Installed 1 | . . 1 . . . . . . . . . . . . . . . . . Triggered 4 | . . . . . . . . . . . 4 . . . . . . . . Most Traps Carried 1 | . . 1 . . . . . . . . . . . . . . . . . Machines | -11 -10 -10 -8 -7 -6 -5 -5 -5 -5 -4 -4 -4 -4 -4 -3 -3 -3 -2 -2 ---------- Run | Yrd Mat Sub Mat Fac Fac Fac Upp Upp War Pro Fac Upp Upp Zhi Pro Res Tes Res Qua Machines Disabled 19 | . . 1 . . 5 1 . . 1 . 1 . . . . . 5 . 5 Max in Single Turn 2 | . . 1 . . 2 1 . . 1 . 1 . . . . . 1 . 1 Garrison Access 2 | . . . . . . . . . . . . . . . . 1 1 . . Machines Repaired . | . . . . . . . . . . . . . . . . . . . . Machines Dismantled . | . . . . . . . . . . . . . . . . . . . . Machines Sabotaged . | . . . . . . . . . . . . . . . . . . . . Overloaded Fab Kills . | . . . . . . . . . . . . . . . . . . . . Hacking | -11 -10 -10 -8 -7 -6 -5 -5 -5 -5 -4 -4 -4 -4 -4 -3 -3 -3 -2 -2 --------- Run | Yrd Mat Sub Mat Fac Fac Fac Upp Upp War Pro Fac Upp Upp Zhi Pro Res Tes Res Qua Machines Accessed 62 | . 3 1 3 8 7 3 2 2 2 . 6 . . 4 . 6 9 4 2 Terminals 37 | . 2 . 2 7 3 3 . 1 . . 5 . . . . 3 6 3 2 Fabricators 7 | . . . . 1 4 . . . . . 1 . . . . . 1 . . Repair Stations 2 | . 1 . . . . . . . . . . . . . . 1 . . . Recycling Units 1 | . . . . . . . . . . . . . . . . 1 . . . Scanalyzers 1 | . . . . . . . . . . . . . . . . . 1 . . Garrison Access 4 | . . . 1 . . . . . . . . . . . . 1 1 1 . Total Hacks 179 | . 6 1 4 18 16 8 3 2 2 . 27 . . 17 . 28 28 10 9 Successful 118 | . 4 1 1 10 7 3 3 2 2 . 20 . . 17 . 16 19 4 9 Failed 60 | . 2 . 3 8 9 5 . . . . 7 . . . . 11 9 6 . Catastrophic 7 | . . . 3 2 . . . . . . 1 . . . . . . 1 . Database Lockouts 1 | . . . . . . . . . . . . . . . . 1 . . . Manual 87 | . 2 . 3 13 15 6 . . . . 17 . . . . 16 11 1 3 Terminals 128 | . 4 . 3 14 10 8 . 1 . . 25 . . . . 23 23 8 9 Fabricators 15 | . . . . 4 6 . . . . . 2 . . . . . 3 . . Repair Stations 4 | . 2 . . . . . . . . . . . . . . 2 . . . Recycling Units 2 | . . . . . . . . . . . . . . . . 2 . . . Scanalyzers 1 | . . . . . . . . . . . . . . . . . 1 . . Garrison Access 5 | . . . 1 . . . . . . . . . . . . 1 1 2 . Terminal Hacks 73 | . 1 1 1 2 1 1 3 2 2 . 11 . . 17 . 9 11 4 7 Record 10 | . . . . . . . 2 1 . . . . . 5 . 2 . . . Part Schematic 4 | . . . . . . . . . . . . . . 4 . . . . . Robot Analysis 5 | . . . . . . . . . . . 1 . . 4 . . . . . Prototype ID Bank 6 | . . . . . . . . . . . . . . 4 . 1 1 . . Open Door 4 | . . . . . . . 1 1 2 . . . . . . . . . . Level Access Points 4 | . . . . . . . . . . . 1 . . . . 1 1 . 1 Branch Access Points 7 | . . . 1 1 1 . . . . . . . . . . 1 1 1 1 Emergency Access Points 3 | . . . . . . . . . . . 2 . . . . 1 . . . Terminal Index 1 | . . . . . . . . . . . . . . . . . 1 . . Garrison Index 1 | . . . . . . . . . . . . . . . . . 1 . . Alert Level 2 | . . . . . . . . . . . 1 . . . . . . . 1 Unreport Threat 8 | . . . . 1 . . . . . . 1 . . . . 1 1 3 1 Locate Traps 4 | . 1 . . . . . . . . . 2 . . . . . 1 . . Reprogram Traps 1 | . . . . . . . . . . . 1 . . . . . . . . Security Status 1 | . . . . . . . . . . . . . . . . . 1 . . Surveillance Status 1 | . . . . . . . . . . . . . . . . . 1 . . Patrol Status 1 | . . . . . . . . . . . . . . . . . . . 1 Recall Investigation 1 | . . . . . . . . . . . . . . . . 1 . . . Recall Reinforcements 1 | . . . . . . . . . . . . . . . . 1 . . . Registered Components 2 | . . . . . . . . . . . 1 . . . . . 1 . . Registered Prototypes 2 | . . . . . . . . . . . . . . . . . 1 . 1 Zone Layout 3 | . . . . . . 1 . . . . 1 . . . . . . . 1 Proto ID Catalog 1 | . . 1 . . . . . . . . . . . . . . . . . Fabricator Hacks 4 | . . . . 1 1 . . . . . 1 . . . . . 1 . . Network Status 3 | . . . . . 1 . . . . . 1 . . . . . 1 . . Build 1 | . . . . 1 . . . . . . . . . . . . . . . Repair Station Hacks 4 | . 2 . . . . . . . . . . . . . . 2 . . . Scan Component 2 | . 1 . . . . . . . . . . . . . . 1 . . . Repair 2 | . 1 . . . . . . . . . . . . . . 1 . . . Recycling Unit Hacks 1 | . . . . . . . . . . . . . . . . 1 . . . Report Inventory 1 | . . . . . . . . . . . . . . . . 1 . . . Scanalyzer 1 | . . . . . . . . . . . . . . . . . 1 . . Insert Component 1 | . . . . . . . . . . . . . . . . . 1 . . Garrison Access Hacks 2 | . . . . . . . . . . . . . . . . 1 1 . . Seal Access 2 | . . . . . . . . . . . . . . . . 1 1 . . Unauthorized Hacks 33 | . 1 . . 7 5 2 . . . . 8 . . . . 3 5 . 2 Terminals 28 | . 1 . . 6 2 2 . . . . 8 . . . . 3 4 . 2 Botnet 23 | . 1 . . 6 2 2 . . . . 4 . . . . 3 4 . 1 Skim 5 | . . . . . . . . . . . 4 . . . . . . . 1 Fabricators 5 | . . . . 1 3 . . . . . . . . . . . 1 . . Liberate 1 | . . . . . 1 . . . . . . . . . . . . . . Fabnet 4 | . . . . 1 2 . . . . . . . . . . . 1 . . Repair Stations . | . . . . . . . . . . . . . . . . . . . . Recycling Units . | . . . . . . . . . . . . . . . . . . . . Scanalyzers . | . . . . . . . . . . . . . . . . . . . . Garrison Access . | . . . . . . . . . . . . . . . . . . . . Data Cores Recovered 1 | . . . . . . . . . . . . . . . . 1 . . . Used . | . . . . . . . . . . . . . . . . . . . . Hacking Detections 43 | . 1 . 2 7 6 3 . . . . 6 . . . . 5 8 4 1 Full Trace Events 1 | . . . . . . . . . . . . . . . . . . 1 . Feedback Events . | . . . . . . . . . . . . . . . . . . . . Feedback Blocked . | . . . . . . . . . . . . . . . . . . . . Robot Schematics Acquired . | . . . . . . . . . . . . . . . . . . . . Robots Built . | . . . . . . . . . . . . . . . . . . . . Authchips . | . . . . . . . . . . . . . . . . . . . . Time 81 | . . . . 81 . . . . . . . . . . . . . . . Total Robot Build Rating . | . . . . . . . . . . . . . . . . . . . . Part Schematics Acquired 10 | . . . . . . . . . . . . . . 4 . . . . 6 Parts Built . | . . . . . . . . . . . . . . . . . . . . Authchips . | . . . . . . . . . . . . . . . . . . . . Time . | . . . . . . . . . . . . . . . . . . . . Total Part Build Rating . | . . . . . . . . . . . . . . . . . . . . Parts Repaired 2 | . 1 . . . . . . . . . . . . . . 1 . . . Time 52 | . 38 . . . . . . . . . . . . . . 14 . . . Parts Recycled . | . . . . . . . . . . . . . . . . . . . . Recycled Matter . | . . . . . . . . . . . . . . . . . . . . Retrieved Matter . | . . . . . . . . . . . . . . . . . . . . Retrieved Components . | . . . . . . . . . . . . . . . . . . . . Parts Scanalyzed . | . . . . . . . . . . . . . . . . . . . . Part Schematics Acquired . | . . . . . . . . . . . . . . . . . . . . Parts Damaged . | . . . . . . . . . . . . . . . . . . . . Bothacking | -11 -10 -10 -8 -7 -6 -5 -5 -5 -5 -4 -4 -4 -4 -4 -3 -3 -3 -2 -2 ------------ Run | Yrd Mat Sub Mat Fac Fac Fac Upp Upp War Pro Fac Upp Upp Zhi Pro Res Tes Res Qua Used RIF Installer . | . . . . . . . . . . . . . . . . . . . . Robots Hacked 2 | . . . . . . . . . 1 1 . . . . . . . . . Non-combat . | . . . . . . . . . . . . . . . . . . . . Combat 2 | . . . . . . . . . 1 1 . . . . . . . . . Robot Hacks Applied . | . . . . . . . . . . . . . . . . . . . . Relay Couplers Released . | . . . . . . . . . . . . . . . . . . . . Fabnet Peak Effective % 7 | . . . . . 3 7 7 7 7 2 2 2 2 2 . . . 3 3 Autooverrided 2 | . . . . . . . . . 1 1 . . . . . . . . . Robots Rewired 2 | . . . . . . 1 . . . . . . . . . . 1 . . Allies Hacked . | . . . . . . . . . . . . . . . . . . . . Hacks Repelled . | . . . . . . . . . . . . . . . . . . . . Allies | -11 -10 -10 -8 -7 -6 -5 -5 -5 -5 -4 -4 -4 -4 -4 -3 -3 -3 -2 -2 -------- Run | Yrd Mat Sub Mat Fac Fac Fac Upp Upp War Pro Fac Upp Upp Zhi Pro Res Tes Res Qua Total Allies 7 | . . . . . 2 1 . . 1 1 . . 1 . . . 1 . . Largest Group 2 | . . . . . 2 1 . . 1 1 . . 1 . . . 1 . . Highest-Rated Group 147 | . . . . . 64 29 . . 47 12 . . 116 . . . 147 . . Highest-Rated Ally 147 | . . . . . 32 29 . . 47 12 . . 116 . . . 147 . . Total Orders . | . . . . . . . . . . . . . . . . . . . . Ally Attacks 32 | . . . . . 19 2 . . 1 3 . . . . . . 7 . . Total Damage 1242 | . . . . . 651 44 . . 39 33 . . . . . . 475 . . Kills 7 | . . . . . 5 . . . . . . . . . . . 2 . . Allies Corrupted 1 | . . . . . . . . . . . . . . . . . 1 . . Allies Melted . | . . . . . . . . . . . . . . . . . . . . Intel | -11 -10 -10 -8 -7 -6 -5 -5 -5 -5 -4 -4 -4 -4 -4 -3 -3 -3 -2 -2 ------- Run | Yrd Mat Sub Mat Fac Fac Fac Upp Upp War Pro Fac Upp Upp Zhi Pro Res Tes Res Qua Active Infowar (turns) 3896 | . . . . 508 417 208 108 183 232 108 310 105 209 97 173 219 538 272 209 Optics 1207 | . . . . . . . . . . . . . . . . 188 538 272 209 Sensors 1583 | . . . . . . . . . . . 310 105 209 97 63 . 406 256 137 Terrain 3330 | . . . . 508 417 208 108 183 221 108 310 105 209 88 173 219 473 . . Decoding 1912 | . . . . . . . 8 183 232 108 161 . . . . 219 538 272 191 Jamming 198 | . . . . . . . . . . . . . . . . . . 195 3 Robot Analysis Total 5 | . . . . . . . . . . . 1 . . 4 . . . . . Derelict Logs Recovered 9 | . . 2 . . . . . 2 . 2 . 2 1 . . . . . . Drone Launches . | . . . . . . . . . . . . . . . . . . . . Drone Recoveries . | . . . . . . . . . . . . . . . . . . . . Decoded 0b10 Intel 21 | . . . . . . . . . . . 2 . . . . 4 7 6 2 Traps 1 | . . . . . . . . . . . 1 . . . . . . . . Emergency Access 1 | . . . . . . . . . . . 1 . . . . . . . . Patrols 13 | . . . . . . . . . . . . . . . . 1 7 5 . Reinforcements 4 | . . . . . . . . . . . . . . . . 2 . . 2 Guards 2 | . . . . . . . . . . . . . . . . 1 . 1 . Exploration | -11 -10 -10 -8 -7 -6 -5 -5 -5 -5 -4 -4 -4 -4 -4 -3 -3 -3 -2 -2 ------------- Run | Yrd Mat Sub Mat Fac Fac Fac Upp Upp War Pro Fac Upp Upp Zhi Pro Res Tes Res Qua Turns Passed 9059 | 82 1596 2695 745 553 417 208 108 183 232 108 310 105 209 97 173 219 538 272 209 Spaces Moved 10794 | 44 779 1292 393 878 891 388 321 518 598 295 641 209 414 172 506 546 1171 493 245 Core 2 | 2 . . . . . . . . . . . . . . . . . . . Treads 1887 | 42 779 1066 . . . . . . . . . . . . . . . . . Legs 635 | . . 226 393 16 . . . . . . . . . . . . . . . Wheels . | . . . . . . . . . . . . . . . . . . . . Hover . | . . . . . . . . . . . . . . . . . . . . Flight 8270 | . . . . 862 891 388 321 518 598 295 641 209 414 172 506 546 1171 493 245 Fastest Speed 15 | 50 160 130 123 40 30 30 30 30 27 27 27 32 32 27 21 21 21 15 15 Average Speed 59 | 155 160 180 125 42 30 30 30 30 29 27 27 32 32 31 23 21 24 15 15 Slowest Speed 240 | 160 160 240 130 123 30 30 30 30 30 27 32 32 32 90 27 21 27 24 15 Overloaded Moves 1 | . . . . . . . . . . . . . . . 1 . . . . Propulsion Burnouts . | . . . . . . . . . . . . . . . . . . . . Robots Hopped 34 | . . . . . . 2 . . . . 1 . . . . . 20 10 1 Potential Cave-ins 2 | . . 2 . . . . . . . . . . . . . . . . . Cave-ins Triggered . | . . . . . . . . . . . . . . . . . . . . Exploration Rate (%) 45 | 4 98 49 35 37 24 11 54 70 68 60 13 51 64 60 50 17 95 13 28 Regions Visited 19 Branch Regions 11 Pre-discovered Areas 5 | . . 2 . . . . . . . . . . . 3 . . . . . Known Exits Taken 8 | . . . . . . . . . . . 1 1 1 1 1 1 1 1 . Unknown Exits Taken 11 | 1 1 1 1 1 1 1 1 1 1 1 . . . . . . . . . Scrap Searched 31 | . . 14 . . . . 2 2 . 4 . 3 3 . 3 . . . . Spaces Dug 168 | . 1 14 . 18 7 8 2 14 1 . 7 . . . 31 9 34 13 9 Terrain Destroyed 347 | . 3 20 . 18 13 8 2 19 1 . 27 . . . 81 25 34 13 83 Melee 102 | . . 3 . 18 7 8 2 4 1 . 7 . . . 3 9 18 13 9 Projectile 25 | . 3 17 . . . . . . . . . . . . . . . . 5 AOE 220 | . . . . . 6 . . 15 . . 20 . . . 78 16 16 . 69 Terrain Rammed . | . . . . . . . . . . . . . . . . . . . . Walls Destroyed . | . . . . . . . . . . . . . . . . . . . . Machines Disabled . | . . . . . . . . . . . . . . . . . . . . Actions | -11 -10 -10 -8 -7 -6 -5 -5 -5 -5 -4 -4 -4 -4 -4 -3 -3 -3 -2 -2 --------- Run | Yrd Mat Sub Mat Fac Fac Fac Upp Upp War Pro Fac Upp Upp Zhi Pro Res Tes Res Qua Total 12564 | 55 976 1481 559 1029 999 431 326 534 652 312 757 246 482 205 538 623 1340 651 368 Wait 936 | . 60 62 46 101 63 10 . 4 23 9 90 38 62 1 2 44 107 145 69 Move 10712 | 43 778 1291 392 877 890 383 320 517 597 294 638 208 413 171 505 545 1131 476 243 Hop 29 | . . . . . . 2 . . . . 1 . . . . . 19 6 1 Pick Up 68 | 6 14 9 8 4 6 . . 1 4 1 2 . . 2 2 4 2 1 2 Fast Attach 81 | 6 5 3 9 11 2 2 1 1 10 . 3 . . 9 4 1 8 4 2 Attach 30 | . . 5 8 2 2 1 . . . . 2 . . 1 4 1 1 1 2 Detach 24 | . 1 3 3 5 2 2 . . 2 . 1 . . 1 3 . 1 . . Swap 55 | . 8 8 2 1 5 . . 2 2 . 4 . 2 3 3 6 7 1 1 Drop 99 | . 15 8 5 6 7 2 1 2 11 1 5 . . 11 1 4 14 1 5 Fire 190 | . 90 64 2 . 4 . . 3 2 . 2 . . . 7 2 2 . 12 Melee 305 | . . 24 84 22 18 24 4 4 1 7 9 . 5 6 7 16 38 16 20 Ram . | . . . . . . . . . . . . . . . . . . . . Kick . | . . . . . . . . . . . . . . . . . . . . Crush 5 | . 5 . . . . . . . . . . . . . . . . . . Escape Stasis 21 | . . . . . . . . . . . . . . . . . 10 . 11 Rewire 5 | . . . . . . 5 . . . . . . . . . . . . . Trap 1 | . . 1 . . . . . . . . . . . . . . . . . Miscellaneous 3 | . . 3 . . . . . . . . . . . . . . . . . Route ------- -11/Scrapyard -10/Materials (discovered 6 exits: [*Mat x3] / [*Min x2] / *Sub) -10/Subcaves -8/Materials -7/Factory (discovered 4 exits: *Fac x2 / Low x2) -6/Factory (discovered 3 exits: *Fac / *Low x2) -5/Factory -5/Upper Caves -5/Upper Caves -5/Warlord -4/Proximity Caves -4/Factory (discovered 5 exits: Res x4 / *Upp) -4/Upper Caves -4/Upper Caves (discovered 2 exits: *Res / *Zhi) -4/Zhirov -3/Proximity Caves -3/Research (discovered 5 exits: Res x3 / *Tes x2) -3/Testing -2/Research (discovered 2 exits: *Qua x2) -2/Quarantine (discovered 1 exit: Acc) History --------- Turn | Location | Event 13 | -11/Scrapyard | Discovered new exit (range 15) 83 | -11/Scrapyard | Entered Materials 312 | -10/Materials | Build established: Mutant 461 | -10/Materials | Discovered new exit (range 8) 504 | -10/Materials | Discovered new exit (range 11) 609 | -10/Materials | Discovered new exit (range 14) 611 | -10/Materials | Discovered new exit (range 15) 635 | -10/Materials | Core integrity fell below 50% 752 | -10/Materials | Repaired Imp. Heat Sink 1180 | -10/Materials | Discovered new exit (range 10) 1672 | -10/Materials | Discovered new exit (range 3) 1679 | -10/Materials | Entered Subcaves 1680 | -10/Subcaves | Approached by a straggling Scientist 1827 | -10/Subcaves | A swath of the cavern ceiling suddenly collapsed 2464 | -10/Subcaves | Visited 4L-MR0's lab 2486 | -10/Subcaves | Found Flightbrick 2992 | -10/Subcaves | A swath of the cavern ceiling suddenly collapsed 2996 | -10/Subcaves | Lost 4 parts (2n2w) 3365 | -10/Subcaves | Learned location of Zion (-6) 3365 | -10/Subcaves | Met a Zionite searching for "candidates" 3458 | -10/Subcaves | Disturbed a concealed Subdweller 3841 | -10/Subcaves | Curiously followed by a Cobbler waking with a query about "LVR3C" 4022 | -10/Subcaves | A Subdweller sparked back to life 4022 | -10/Subcaves | A Subdweller sparked back to life 4033 | -10/Subcaves | Core integrity fell below 20% 4045 | -10/Subcaves | Found Cargo Legs 4046 | -10/Subcaves | Attached Cargo Legs, gained temporary slots: Utility x2 4087 | -10/Subcaves | Discovered new exit (range 7) 4374 | -10/Subcaves | Entered Materials 4374 | -8/Materials | Evolved 4 slots: Propulsion x2, Utility x2 4508 | -8/Materials | Destroyed 7 combat bots 4690 | -8/Materials | Build established: Hacker-Mutant 4997 | -8/Materials | Lost 5 parts (1p1n1u2w) 5085 | -8/Materials | Discovered new exit (range 11) 5119 | -8/Materials | Entered Factory 5119 | -7/Factory | Evolved 2 slots: Utility x2 5143 | -7/Factory | Attached Flightbrick, gained temporary slots: Utility x3 5276 | -7/Factory | Discovered new exit (range 16) 5494 | -7/Factory | Identified exit to Lower Caves 5530 | -7/Factory | Build established: Hacker-Gladiator 5667 | -7/Factory | Discovered new exit (range 9) 5672 | -7/Factory | Entered another Factory area 5672 | -6/Factory | Evolved 2 slots: Propulsion x2 5986 | -6/Factory | Discovered new exit (range 13) 6004 | -6/Factory | Build established: Hacker-Sprinter 6025 | -6/Factory | Discovered new exit (range 10) 6028 | -6/Factory | Identified exit to Lower Caves 6089 | -6/Factory | Entered another Factory area 6089 | -5/Factory | Evolved 2 slots: Power x1, Propulsion x1 6279 | -5/Factory | Discovered new exit (range 13) 6297 | -5/Factory | Entered Upper Caves 6331 | -5/Upper Caves | Entered a destroyed Warlord outpost 6348 | -5/Upper Caves | Attracted the attention of an 0b10 checkpoint 6392 | -5/Upper Caves | Discovered new exit (range 5) 6405 | -5/Upper Caves | Entered another Upper Caves area 6444 | -5/Upper Caves | Learned Factory stockpile data 6576 | -5/Upper Caves | Discovered new exit (range 10) 6580 | -5/Upper Caves | Learned Factory terminal intel 6588 | -5/Upper Caves | Entered Warlord 6598 | -5/Warlord | System corruption cleaned by Quarantine Array 6687 | -5/Warlord | Visited the Vortex Lab 6689 | -5/Warlord | Found Prototype Energy Gun 6693 | -5/Warlord | Warlord's base attacked by MAIN.C 6709 | -5/Warlord | Met Warlord 6712 | -5/Warlord | Identified Vortex Rail 6721 | -5/Warlord | Found Prototype Reactor 6721 | -5/Warlord | Identified Vortex Chain Reactor 6733 | -5/Warlord | Found Prototype Processor 6733 | -5/Warlord | Identified Exp. Armor Integrity Analyzer 6735 | -5/Warlord | Found Prototype Device 6735 | -5/Warlord | Identified Thermal Barrier 6738 | -5/Warlord | Found Prototype Device 6738 | -5/Warlord | Identified Exp. Phase Shifter 6801 | -5/Warlord | Opened side exit 6812 | -5/Warlord | Spotted B-75 Beast 6812 | -5/Warlord | Spotted B-86 Titan 6815 | -5/Warlord | Discovered new exit (range 15) 6820 | -5/Warlord | Entered Proximity Caves 6836 | -4/Proximity Caves | Learned Research terminal intel 6854 | -4/Proximity Caves | Learned Research terminal intel 6924 | -4/Proximity Caves | Discovered new exit (range 14) 6928 | -4/Proximity Caves | Entered Factory 6928 | -4/Factory | Evolved 2 slots: Utility x2 6930 | -4/Factory | Loaded intel: 28 terminal locations 7088 | -4/Factory | Discovered new exit (range 7) 7093 | -4/Factory | Identified exit to Upper Caves 7194 | -4/Factory | Identified exit to Research 7229 | -4/Factory | Build established: Hacker-Scout 7238 | -4/Factory | Entered Upper Caves 7274 | -4/Upper Caves | Identified exit to Upper Caves 7285 | -4/Upper Caves | Learned location of 1 exit from Research 7328 | -4/Upper Caves | Attracted the attention of an 0b10 checkpoint 7343 | -4/Upper Caves | Entered another Upper Caves area 7365 | -4/Upper Caves | Discovered exit to Research (range 12) 7443 | -4/Upper Caves | Encountered a Warlord checkpoint 7451 | -4/Upper Caves | Spotted B-86 Titan 7507 | -4/Upper Caves | Destroyed B-86 Titan 7517 | -4/Upper Caves | Learned Research emergency access door positions 7547 | -4/Upper Caves | Discovered new exit (range 16) 7552 | -4/Upper Caves | Identified exit to Zhirov 7552 | -4/Upper Caves | Entered Zhirov 7552 | -4/Zhirov | Discovered new exit (range 3) 7558 | -4/Zhirov | Met Zhirov 7565 | -4/Zhirov | Learned location of Quarantine (-2) 7565 | -4/Zhirov | Learned location of Testing (-3) 7565 | -4/Zhirov | Learned location of Command (-1) 7567 | -4/Zhirov | Zhirov requested help retrieving the SGEMP Prototype 7573 | -4/Zhirov | Found Alien Artifact 7573 | -4/Zhirov | Identified Integrated Dissipator 7573 | -4/Zhirov | Installed Integrated Dissipator, increased core heat dissipation (+20) 7581 | -4/Zhirov | Found Alien Artifact 7649 | -4/Zhirov | Identified exit to Proximity Caves 7649 | -4/Zhirov | Entered Proximity Caves 7739 | -3/Proximity Caves | Spotter reported a threat 7814 | -3/Proximity Caves | Discovered exit to Research (range 15) 7822 | -3/Proximity Caves | Entered Research 7822 | -3/Research | Evolved 2 slots: Utility x2 7823 | -3/Research | Identified exit to Research 7825 | -3/Research | Loaded intel: 23 terminal locations 7846 | -3/Research | Identified exit to Testing 7958 | -3/Research | Central database locked down 7974 | -3/Research | Repaired Hvy. Missile Launcher 8010 | -3/Research | Found Fusion Bomb Launcher 8031 | -3/Research | Build established: Hacker-Sprinter 8041 | -3/Research | Entered Testing 8273 | -3/Testing | Rewired PY-LO9LJB4S8T 8473 | -3/Testing | Build established: Hacker-Scout 8540 | -3/Testing | Spotted Striker 8545 | -3/Testing | Found Prototype Device 8545 | -3/Testing | Identified AEGIS Remote Shield 8550 | -3/Testing | Spotted Striker 8553 | -3/Testing | Lost 3 parts (1n2u) 8579 | -3/Testing | Entered Research 8579 | -2/Research | Warlord forces began assault on 0b10 8579 | -2/Research | Evolved 2 slots: Propulsion x1, Utility x1 8580 | -2/Research | Loaded intel: 23 terminal locations 8649 | -2/Research | Spotted B-90 Cyclops 8665 | -2/Research | Identified exit to Quarantine 8689 | -2/Research | Research machine network offline 8787 | -2/Research | Lost 3 allies 8851 | -2/Research | Entered Quarantine 8866 | -2/Quarantine | Scanned by Researcher 8876 | -2/Quarantine | Found Alien Slashing Weapon 8876 | -2/Quarantine | Identified Sigix Broadsword 8959 | -2/Quarantine | Identified exit to Access 9052 | -2/Quarantine | Core integrity fell below 50% 9059 | -2/Quarantine | Core integrity fell below 20% 9060 | -2/Quarantine | Destroyed by G-73 Enforcer with Heavy Laser Last Messages --------------- 09053_ Slug penetrates Wall. 09054_ P-80 Master resets H-88 Terminator, system corruption cleaned. 09054_ Cld. Impulse Thruster destroyed. 09055_ Held in stasis. 09055_ C-65 Expert is analyzing... 09055_ Penetrated by Slug. 09055_ Imp. Diametric Drive destroyed. 09055_ Penetrated by Slug. 09055_ Slug penetrates G-73 Enforcer. 09055_ C-65 Expert destroyed. 09056_ Penetrated by Slug. 09057_ Held in stasis. 09057_ C-65 Expert is analyzing... 09058_ Slug penetrates Quantum Separator. 09058_ Penetrated by Slug. 09059_ Held in stasis. 09059_ C-65 Expert is analyzing... 09059_ Penetrated by Slug. 09059_ Slug penetrates Wall. 09059_ Hacking Suite destroyed. Map ----- +----------------------------------------------------+ | ?????????????????????????????????????????????????? | | ????????????????####?????????????????????????????? | | ???????????????? !%#?????????????????????????????? | | ???????????????? [#?????????????????????????????? | | ???????????#####% %#?????????????????????????????? | | ???????????# ??????????????????????????????? | | ???????????# "###????????????????????????????? | | ???????????# "#%#????????????????????????????? | | ???????????# *!]=%?????????????????????????????? | | ????#+##+### =%*%??????????????????????????????? | | ????? =]=????????????#??????????????????? | | ???????# #??????????? #??????????????????? | | ???????# ! #?###???????+##?????????????????? | | ???????# %! #?#""??????? ???????????????? | | ???##### ]! ###T"##### u ??????????????? | | ???????# ## # ?????????????? | | ######## ## # #????????????? | | # # ## # """"""" #????"???????? | | # ! # ## # """"""" ### ""???????? | | # "" # ##### #c""""" " # "" " ???? | | # ""%/ # #???# # # ???? | | # ""/"|# ##### # ## # # ##??? | | # "" " # $$ ??? | | # """" + =[= $%$ g ??? | | # # h ]%[ $$ gg #?? | | # # ^ h @]= gg #?? | | # # #########+# $$ g# #?? | | # # #?# * $%$ g = ??? | | # # #?# " $ g h ??? | | # # #?# "T ## "" h ??? | | # # #?# """ ## """ # ???? | | ###/##"# #?# """ ## """ #??"" # ???? | | # # #?# """ # ### """ #????" #??????? | | # # #?# # ##?# """ #???????#??????? | | # # #?# ! # #??# """ #??????????????? | | # # #?####;+##### #??# """ #??????????????? | | # "" # #???# # #???#c #??# ???????????????? | | # "" # ####;## ##### #??# ???????????????? | | # """" # #??# ???????????????? | | # ""*" + #??######???????????????? | | # """" # #???????????????????????? | | # ##;#+######/### #???????????????????????? | | # ## %! # =# #???????????????????????? | | # ## " # # ########????????????????? | | # ## "" # " "" # # T"!!#????????????????? | | ######### "" # "R"" # # ""!#????????????????? | | ????????# "" # """" # + !""#????????????????? | | ????????# " # # # "#????????????????? | | ????????# "" ####"### # ""#????????????????? | | ????????# "" ##?###?# # ""!#????????????????? | +----------------------------------------------------+ Best States ------------- Heat Dissipation 88 Energy Generation 41 Energy Capacity 565 Matter Stores 300 Matter Capacity 300 Sight Range 23 Robot Scan Range 16 Terrain Scan Range 20 Terrain Scan Density 310 Jamming Range 12 Power Amplification 20 Additional Mass Support 6 Armor Coverage 800 Utility Shielding 66 Phase Shifting 20 Evasion (%) 67 Targeting Accuracy 6 Melee Accuracy 13 Recoil Reduction 2 Offensive Hacking 45 Defensive Hacking 14 Item Schematics ----------------- Assault Drone Bay | -4/Zhirov | Free Exp. Heat Sink | -4/Zhirov | Free Exp. Optical Array | -4/Zhirov | Free Imp. Arc Thrower | -4/Zhirov | Free Enh. Biometal Leg | -2/Quarantine | Archive Exp. Biometal Leg | -2/Quarantine | Archive Exp. System Shield | -2/Quarantine | Archive Hds. Centrium Leg | -2/Quarantine | Archive Cld. Linear Gravjet | -2/Quarantine | Archive Prc. Matter Filter | -2/Quarantine | Archive Robot Schematics ------------------ None Fabricated ------------ Nothing Repaired ---------- Imp. Heat Sink | 12% | -10/Materials Hvy. Missile Launcher | 16% | -3/Research Alien Tech Used ----------------- Integrated Dissipator Sigix Broadsword Achievements -------------- None Challenges ------------ None Game ------ Seed TitaniumGhostMembrane Manual? 0 Play Time 01:55:37 Cumulative 496.7 hours Start 2025.06.13 @ 19:44:40 End 2025.06.16 @ 15:48:05 Sessions 7 Manual Loads 0 Difficulty Rogue Special Mode None Game No. 342 Rogue 342 Adventurer 0 Explorer 0 Win Type - Total 46 Types 39/0/5/2/0/0/0/0/0/0 Lore% 82 Gallery% 79 Achievement% 72 Wizard Run 0 Options --------- Layout 0 ASCII 0 Keyboard 1 Movement Numpad Keybinds 0 Fullscreen 2 Font 24/Tamsyn Map View 76x50 Zoom Use 0% Tactical HUD 1 Map Filters NONE Filters NONE Steam 1 RUN: 905a7360-971d-4c11-8812-29ff941cec84